Cogmind - Beta 17 @@@ ROGUE MODE // 2026.07.16 @ 12:15:13 Player: Hoosbot mk. 3.1415927 Result: Destroyed by G-34 Mercenary with Small Laser Performance ------------- Evolutions (0) 0 Regions Visited (2) 400 Robots Destroyed (10) 50 Value Destroyed (310) 310 Prototype IDs (0) 0 Alien Tech Used (0) 0 Bonus (0) 0 TOTAL SCORE: 760 Bonus ------- None Cogmind --------- Core Integrity 0/250 Matter 293/300 Energy 39/100 System Corruption 1% Temperature Cool (8) Movement Treading (160) Location -10/Mines Parts ------- > --- POWER (1) -------- (None) > --- PROPULSION (2) --- Light Treads Light Treads > --- UTILITY (2) ------ Medium Storage Unit > --- WEAPON (2) ------- (None) > --- INVENTORY (10) --- Aluminum Leg Aluminum Leg Aluminum Leg Aluminum Leg Aluminum Leg Medium Storage Unit Peak State ------------ > --- POWER ------------ Light Ion Engine > --- PROPULSION ------- Aluminum Leg Aluminum Leg > --- UTILITY ---------- Improved Heat Sink Medium Storage Unit > --- WEAPON ----------- Particle Gun Light Assault Rifle > --- INVENTORY -------- Light Treads Light Treads Aluminum Leg Medium Storage Unit Seismic Detector Small Laser Mining Laser [Rating: 10] Favorites ----------- Power Light Ion Engine Engine Light Ion Engine Propulsion Aluminum Leg Treads Light Treads Leg Aluminum Leg Utility Medium Storage Unit Device Improved Heat Sink Storage Medium Storage Unit Weapon Particle Gun Energy Gun Particle Gun Ballistic Gun Light Assault Rifle Special Weapon Mining Laser Build | -11 -10 -10 ------- Run | Yrd Mat Min Slots Evolved . | . . . Power . | . . . Propulsion . | . . . Utility . | . . . Weapon . | . . . Parts Attached 17 | 6 3 8 Power 1 | 1 . . Engine 1 | 1 . . Core . | . . . Reactor . | . . . Propulsion 6 | 2 . 4 Treads 2 | . . 2 Leg 4 | 2 . 2 Wheel . | . . . Hover . | . . . Flight . | . . . Utility 6 | 1 2 3 Device 3 | . 1 2 Storage 3 | 1 1 1 Processor . | . . . Hackware . | . . . Protection . | . . . Artifact . | . . . Weapon 4 | 2 1 1 Energy Gun 2 | 1 1 . Energy Cannon . | . . . Ballistic Gun 1 | 1 . . Ballistic Cannon . | . . . Launcher . | . . . Special Weapon 1 | . . 1 Impact Weapon . | . . . Slashing Weapon . | . . . Piercing Weapon . | . . . Special Melee Weapon . | . . . Unidentified Prototypes . | . . . Parts Lost 8 | . . 8 Power 1 | . . 1 Propulsion . | . . . Utility 3 | . . 3 Weapon 4 | . . 4 Highest Loss Streak 4 | . . 4 To Critical Strikes . | . . . Average Backups 5 | 1 4 5 Power . | . . . Propulsion 2 | 1 2 3 Utility 1 | . . 1 Weapon 1 | . 1 1 Tool/Special . | . . . Unused Backups 3 | . . 3 Power . | . . . Propulsion 3 | . . 3 Utility . | . . . Weapon . | . . . Tool/Special . | . . . Average Slot Usage (%) 92 | . 97 91 Engine 9 | . 14 8 Treads 1 | . . 2 Leg 26 | . 28 25 Device 12 | . 11 13 Storage 14 | . 14 14 Energy Gun 18 | . 21 17 Ballistic Gun 6 | . 6 6 Special Weapon 1 | . . 1 Peak Build Rating 10 | 6 8 10 Average Rating 7 | 3 7 8 On Entrance 4 | . 6 8 Avg Prop Armor Cover (%) . | . . . Naked Turns . | . . . Heaviest Build 18 | 10 18 18 Greatest Support 40 | 20 20 40 Greatest Overweight (x) 1 | 1 . . Average Overweight (x) . | . . . Largest Inventory Capacity 10 | 8 10 10 Average Capacity 9 | 7 8 10 Most Carried 7 | 5 6 7 Average Carried 5 | 2 4 5 Final Capacity 10 | 8 10 10 Final Carried 6 | 2 6 6 Class Distribution -------------------- 58% | Mutant 41% | Scavenger-Mutant Dominant Class ---------------- Mutant | -10/Materials Scavenger-Mutant | -10/Mines Resources | -11 -10 -10 ----------- Run | Yrd Mat Min Matter Collected 432 | 273 24 135 Remotely . | . . . Salvage Created 353 | 94 73 186 Parts 22 | 2 5 15 Haulers Intercepted . | . . . Recyclers Shooed 1 | . . 1 Parts Field Recycled . | . . . Retrieved Matter . | . . . Parts Self-Destructed . | . . . Prevented . | . . . Parts Restored . | . . . Kills | -11 -10 -10 ------- Run | Yrd Mat Min Combat Hostiles Destroyed 7 | . 1 6 Guns 5 | . 1 4 Cannons 1 | . . 1 Classes Destroyed 3 | 1 2 . Tunneler 2 | . 1 1 Recycler 1 | 1 . . Grunt 7 | . 1 6 Best Kill Streak 2 | 1 1 2 Combat Bots Only 2 | . 1 2 Max Kills in Single Turn 1 | 1 1 1 Gunslinging . | . . . Exploded . | . . . Melee . | . . . Uniques/NPCs Destroyed . | . . . Combat | -11 -10 -10 -------- Run | Yrd Mat Min Hostile Shots Fired 143 | . 9 134 Missed 33 | . 4 29 Hits 110 | . 5 105 Projectile 110 | . 5 105 Critical Strikes 1 | . . 1 Damage Taken 1168 | . 75 1093 Core 254 | . 33 221 Absorbed by Shields . | . . . Core Remaining (%) 100 | 100 . . Volleys Fired 42 | 3 8 31 Largest 2 | 2 2 2 Hottest 165 | 60 105 165 Shots Fired 72 | 6 13 53 Gun 66 | 6 13 47 Cannon . | . . . Launcher . | . . . Special 6 | . . 6 Kinetic 17 | 3 4 10 Thermal 55 | 3 9 43 Explosive . | . . . Electromagnetic . | . . . Robot Hit Streak 9 | 3 7 9 Robot Miss Streak 3 | 1 1 3 Penetration Max . | . . . Secondary Targets 2 | . . 2 Max Gunslinging Chain 1 | . . 1 Shots Hit Robots 48 | 4 9 35 Core Hits 17 | 2 4 11 Critical Kills . | . . . Critical Parts Destroyed . | . . . Critical Strikes 2 | . . 2 Burn 2 | . . 2 Melee Attacks . | . . . Impact . | . . . Slashing . | . . . Piercing . | . . . Sneak Attacks . | . . . Combat Hostiles . | . . . Follow-up Attacks . | . . . Damage Inflicted 675 | 42 91 542 Guns 599 | 42 91 466 Cannons . | . . . Explosions . | . . . Melee . | . . . Ramming 4 | . . 4 Kinetic 74 | 10 25 39 Thermal 597 | 32 66 499 Explosive . | . . . Electromagnetic . | . . . Impact . | . . . Slashing . | . . . Piercing . | . . . Highest Corruption 1 | . 1 1 Average Corruption 1 | . 1 1 Corruption Purged . | . . . Corruption Blocked . | . . . Effects 4 | . . 4 Message Errors 2 | . . 2 Heat Flow Errors 1 | . . 1 Parts Rejected 1 | . . 1 Overload Shots . | . . . Overflow Damage . | . . . Projectiles . | . . . Explosions . | . . . Melee . | . . . Knockbacks . | . . . Impact . | . . . Kinetic . | . . . Secondary . | . . . Self-Inflicted Damage . | . . . Shots . | . . . Rammed . | . . . Targets Rammed 1 | . . 1 Kicked 1 | . . 1 Crushed . | . . . Highest Temperature 243 | 40 47 243 Average Temperature 52 | 19 25 61 Received Heat Transfer 426 | . 42 384 Siege Activations . | . . . Martial Activations . | . . . Shielding Activations . | . . . Robots Disrupted . | . . . Combat Hostiles . | . . . Robots Corrupted . | . . . Combat Hostiles . | . . . Parts Fried . | . . . Impact Corruptions . | . . . Robots Melted 1 | . . 1 Combat Hostiles 1 | . . 1 Parts Melted . | . . . Heat Transferred 1477 | 75 150 1252 Parts Sabotaged . | . . . Parts Stolen . | . . . Parts Stripped . | . . . Power Chain Reactions . | . . . Alert | -11 -10 -10 ------- Run | Yrd Mat Min Maximum Alert Level . | . . . Low Security (%) 100 | 100 100 100 Level 1 . | . . . Level 2 . | . . . Level 3 . | . . . Level 4 . | . . . Level 5 . | . . . High Security . | . . . Max Security . | . . . Peak Influence 60 | 5 35 60 Initial . | . . . Average 16 | . 10 20 Influence Increases 243 | 5 50 188 Destroy 0b10 Robot/C 140 | . 20 120 Destroy 0b10 Robot/NC 15 | 5 5 5 Destroy Leader 40 | . 10 30 Destroy Structure 3 | . . 3 Lose Combat Pursuer 45 | . 15 30 Influence Decreases 243 | 5 50 188 Time Decay 183 | 5 50 128 Lost Part 60 | . . 60 Squads Dispatched 1 | . 1 . Investigation . | . . . Extermination . | . . . Reinforcement 1 | . 1 . Assault . | . . . Garrison . | . . . Intercept . | . . . Searches Triggered . | . . . Construction Impeded . | . . . Haulers Reinforced . | . . . Active Scanning Responses . | . . . Cargo Convoy Interrupts . | . . . Stealth | -11 -10 -10 --------- Run | Yrd Mat Min Distress Signals 2 | . 2 . Communications Jammed . | . . . Distress Signals . | . . . Times Spotted 19 | . 6 13 Peak Tracking Total 5 | . 5 5 Tactical Retreats 2 | . 1 1 Traps | -11 -10 -10 ------- Run | Yrd Mat Min Traps Triggered 1 | . 1 . Indirectly . | . . . Trap Hack Attempts . | . . . Triggered . | . . . Disarmed . | . . . Reprogrammed . | . . . Reused . | . . . Traps Extracted . | . . . Installed . | . . . Triggered . | . . . Machines | -11 -10 -10 ---------- Run | Yrd Mat Min Machines Disabled . | . . . Max in Single Turn . | . . . Machines Repaired . | . . . Machines Dismantled . | . . . Machines Sabotaged . | . . . Overloaded Fab Kills . | . . . Hacking | -11 -10 -10 --------- Run | Yrd Mat Min Machines Accessed 1 | . 1 . Terminals . | . . . Fabricators . | . . . Repair Stations . | . . . Recycling Units 1 | . 1 . Scanalyzers . | . . . Garrison Access . | . . . Total Hacks 4 | . 4 . Successful 1 | . 1 . Failed 3 | . 3 . Catastrophic 1 | . 1 . Database Lockouts . | . . . Manual . | . . . Terminals . | . . . Fabricators . | . . . Repair Stations . | . . . Recycling Units 4 | . 4 . Scanalyzers . | . . . Garrison Access . | . . . Terminal Hacks . | . . . Fabricator Hacks . | . . . Repair Station Hacks . | . . . Recycling Unit Hacks 1 | . 1 . Report Inventory 1 | . 1 . Scanalyzer . | . . . Garrison Access Hacks . | . . . Unauthorized Hacks . | . . . Terminals . | . . . Fabricators . | . . . Repair Stations . | . . . Recycling Units . | . . . Scanalyzers . | . . . Garrison Access . | . . . Data Cores Recovered . | . . . Used . | . . . Hacking Detections 1 | . 1 . Full Trace Events . | . . . Feedback Events . | . . . Feedback Blocked . | . . . Robot Schematics Acquired . | . . . Robots Built . | . . . Authchips . | . . . Time . | . . . Total Robot Build Rating . | . . . Part Schematics Acquired . | . . . Parts Built . | . . . Authchips . | . . . Time . | . . . Total Part Build Rating . | . . . Part Studies Acquired . | . . . Parts Repaired . | . . . Time . | . . . Parts Recycled . | . . . Recycled Matter . | . . . Retrieved Matter . | . . . Retrieved Components . | . . . Parts Scanalyzed . | . . . Part Schematics Acquired . | . . . Parts Damaged . | . . . Bothacking | -11 -10 -10 ------------ Run | Yrd Mat Min Used RIF Installer . | . . . Robots Hacked . | . . . Non-combat . | . . . Combat . | . . . Robot Hacks Applied . | . . . Relay Couplers Released . | . . . Fabnet Peak Effective % . | . . . Robots Rewired . | . . . Allies Hacked . | . . . Hacks Repelled . | . . . Allies | -11 -10 -10 -------- Run | Yrd Mat Min Total Allies . | . . . Largest Group . | . . . Highest-Rated Group . | . . . Highest-Rated Ally . | . . . Total Orders . | . . . Ally Attacks . | . . . Total Damage . | . . . Kills . | . . . Allies Corrupted . | . . . Allies Melted . | . . . Intel | -11 -10 -10 ------- Run | Yrd Mat Min Active Infowar (turns) 221 | . 121 100 Seismic 221 | . 121 100 Robot Analysis Total . | . . . Derelict Logs Recovered . | . . . Drone Launches . | . . . Drone Recoveries . | . . . Exploration | -11 -10 -10 ------------- Run | Yrd Mat Min Turns Passed 593 | 69 141 383 Spaces Moved 334 | 42 90 202 Core 19 | 19 . . Treads 13 | . . 13 Legs 302 | 23 90 189 Wheels . | . . . Hover . | . . . Flight . | . . . Fastest Speed 50 | 50 120 120 Average Speed 120 | 108 120 122 Slowest Speed 160 | 120 120 160 Overloaded Moves . | . . . Propulsion Burnouts . | . . . Robots Hopped . | . . . Potential Cave-ins . | . . . Cave-ins Triggered . | . . . Exploration Rate (%) 18 | 4 19 32 Regions Visited 2 Branch Regions 1 Pre-discovered Areas . | . . . Known Exits Taken . | . . . Unknown Exits Taken 2 | 1 1 . Scrap Searched . | . . . Spaces Dug . | . . . Terrain Destroyed 3 | . . 3 Melee . | . . . Projectile 3 | . . 3 AOE . | . . . Terrain Rammed . | . . . Walls Destroyed . | . . . Machines Disabled . | . . . Actions | -11 -10 -10 --------- Run | Yrd Mat Min Total 442 | 60 110 272 Wait 15 | . 3 12 Move 332 | 41 89 202 Hop . | . . . Pick Up 21 | 8 6 7 Fast Attach . | . . . Attach 14 | 7 1 6 Detach 2 | 1 . 1 Swap 12 | . 2 10 Drop 3 | . 1 2 Fire 42 | 3 8 31 Melee . | . . . Ram . | . . . Kick 1 | . . 1 Crush . | . . . Escape Stasis . | . . . Rewire . | . . . Trap . | . . . Miscellaneous . | . . . Route ------- -11/Scrapyard -10/Materials -10/Mines (discovered 1 exit: [*Mat]) History --------- Turn | Location | Event 18 | -11/Scrapyard | Discovered new exit (range 15) 70 | -11/Scrapyard | Entered Materials 177 | -10/Materials | Discovered new exit (range 13) 211 | -10/Materials | Entered Mines 309 | -10/Mines | Build established: Mutant 396 | -10/Mines | Discovered new exit (range 15) 564 | -10/Mines | Core integrity fell below 50% 575 | -10/Mines | Core integrity fell below 20% 594 | -10/Mines | Destroyed by G-34 Mercenary with Small Laser Last Messages --------------- Lgt. Ion Engine destroyed. G-47 Trooper suffers critical hit (Burn). Lgt. Assault Rifle destroyed. [Achievement: It's Just You] G-47 Trooper critical meltdown. Switching to secondary target: G-34 Mercenary. G-34 Mercenary destroyed. D|SCXW9LACAGGK&BR& Acquired 31 matter. Acquired Imp. Heat Sink. Acquired Aluminum Leg. Imp. Heat Sink destroyed. Particle Gun destroyed. Destroyed Lgt. Ion Engine. S-10 Pest heat short circuits Flight Unit. S-10 Pest heat damages Flight Unit. Sml. Laser destroyed. S-10 Pest destroyed. Acquired 8 matter. Imp. Heat Sink destroyed. Map ----- +----------------------------------------------------+ | | | | | | | | | | | ?????????????????????????????????????????????????? | | ?????????????????????????????????????????????????? | | ?????????????????????????????????????????????????? | | ?????????????????????????????????????????????????? | | ?????????????????????????????????????????????????? | | ?????????????????????????????????????????????????? | | ?????????????????????????????????????????????????? | | ??????????????????"??????????????????????????????? | | ???????????????? ?????????????????????????????? | | ????????????????? ?????????????????????????????? | | ?????????????????# ????????????????????????????? | | ?????????????????? ????????????????????????????? | | ??????????????????? ???????????????????????????? | | ???????????????????# ???????????????????????????? | | ???????????????????# ??????????????????????????? | | ????????????????????# ??????????????????????????? | | ?????????????????????# ?????????????????????????? | | ?????????????????????# ###??????????????????????? | | ??????????????????#### ###????????#####???????? | | ??????????????????#g ##??????## ##??????? | | ??????????????????#g @ ######?# ##?????? | | ??????????????????#g s $#?# ##????? | | ??????????????????#### sgg #?## ##???? | | ?????????????????????###### ### #??### % #???# | | ??????????????????????????####?# #????##%= #??## | | ???????????????????????????????# #????##= #### | | ??????????????????????????????## #????# ## | | ?????????????????????????????## ##???# | | ?????????????????????????????# #???# | | ?????????????????????????????# ###### ## | | ????????????????????????????## ### | | ????????????????????????????# ##?? | | ????????????????????? #### #########??? | | ??????????????????? ??# #?????????## | | ???????????????????? ??# #????????## | | ????????????????????###### ??# #???????## | | ?????????????????????????# ??# ######### | | ???????????????????????? ##??# | | ???????????????????????### ## ????######### | | ?????????????????????????# ?# ????????????## | | ?????????????????????????# ??# ????????????## ## | | ????????????????????????? ?? ???????????## ### | | ????????????????????????????? ???????????# #?? | | ?????????????????????????????# ???????????## ##? | | ??????????????????????????????????????????# ## | +----------------------------------------------------+ Best States ------------- Heat Dissipation 39 Energy Generation 10 Energy Capacity 125 Matter Stores 300 Matter Capacity 300 Sight Range 16 Terrain Scan Density 10 Evasion (%) 55 Recoil Reduction 2 Item Schematics ----------------- None Robot Schematics ------------------ None Fabricated ------------ Nothing Repaired ---------- Nothing Studied --------- None Alien Tech Used ----------------- None Achievements -------------- It's Just You Challenges ------------ None Game ------ Seed PlexusNovaCasing Manual? 0 Play Time 00:40:55 Cumulative 5.1 hours Start 2026.07.16 @ 11:19:00 End 2026.07.16 @ 12:15:13 Sessions 1 Manual Loads 0 Difficulty Rogue Special Mode None Game No. 5 Rogue 5 Adventurer 0 Explorer 0 Win Type - Total 0 Types 0/0/0/0/0/0/0/0/0/0 Lore% 0 Gallery% 8 Achievement% 6 Wizard Run 0 Options --------- Layout 1 ASCII 0 Keyboard 0 Movement Mouse Keybinds 0 Fullscreen 2 Font 32/SmallcapsGlow Map View 50x35 Zoom Use 0% Tactical HUD 0 Map Filters NONE Filters NONE Steam 1 RUN: c37dd6eb-3464-430f-8e0c-0ad60c74e819